bitfinex-derivatives/quotes_SOLF0:USTF0_20250301
["timestamp","ask_amount","ask_price","bid_price","bid_amount"]
[1740798248050,53.60523406,147.63,147.62,8.8013]
[1740798249046,17.98462426,147.66,147.62,3.38]
[1740798249251,144.84246397,147.77,147.58,1.46513636]
[1740798249443,144.84246397,147.77,147.63,0.04794939]
[1740798249844,144.84246397,147.77,147.64,13.96]
[1740798250051,148.59416397,147.77,147.64,13.96]
[1740798250255,5.4174,147.73,147.64,13.96]
[1740798250549,148.59416397,147.77,147.69,0.04565025]
[1740798250952,5.4166,147.75,147.7,5.4183]
[1740798251351,5.4166,147.75,147.71,0.04921671]
[1740798251550,148.59416397,147.77,147.71,0.04921671]
[1740798251851,148.59416397,147.77,147.62,174.53924037]
[1740798252246,148.59416397,147.77,147.65,5.4202]
[1740798252247,5.4174,147.73,147.65,5.4202]
[1740798252448,17.4692,147.72,147.65,5.4202]
[1740798252645,17.4692,147.72,147.62,174.53924037]
[1740798252952,0.04354195,147.68,147.66,0.04662602]
[1740798253849,0.04354195,147.68,147.66,5.46632602]
[1740798254048,0.04354195,147.68,147.66,0.04662602]
[1740798254555,0.04354195,147.68,147.67,5.4195]
[1740798254850,0.04354195,147.68,147.66,0.04662602]
[1740798255252,0.04354195,147.68,147.66,5.46642602]
[1740798256156,0.04354195,147.68,147.67,5.4195]
[1740798256546,19.3569,147.74,147.67,5.4195]
[1740798257051,3.6918,147.73,147.67,5.4195]
[1740798257749,9.1092,147.73,147.69,0.04806163]
[1740798258052,3.6918,147.73,147.61,216.88]
[1740798258248,13.94,147.75,147.7,0.04629107]
[1740798258450,17.6318,147.75,147.71,0.04965443]
[1740798258651,17.6318,147.75,147.61,216.88]
[1740798258956,5.4173,147.73,147.66,5.4196]
[1740798259157,17.6318,147.75,147.67,0.04744877]
[1740798259660,5.4172,147.74,147.67,5.46694877]
[1740798260144,23.0485,147.75,147.67,0.04744877]
[1740798260346,9.1085,147.75,147.67,0.04744877]
[1740798260548,23.0485,147.75,147.67,0.04744877]
[1740798260745,5.4172,147.74,147.68,5.4188]
[1740798261250,5.4172,147.74,147.7,0.04713628]
[1740798261446,5.4173,147.73,147.67,5.4194]
[1740798261651,17.6318,147.75,147.71,0.04886612]
[1740798261851,17.6318,147.75,147.61,216.88]
[1740798261852,17.6318,147.75,147.65,5.4199]
[1740798262055,5.4179,147.72,147.61,216.88]
[1740798262256,5.4179,147.72,147.69,0.04515972]
[1740798262459,5.4179,147.72,147.61,216.88]
[1740798262658,5.4181,147.71,147.69,0.04551432]
[1740798262858,5.4181,147.71,147.61,216.88]
[1740798263157,5.4179,147.72,147.69,0.04933521]
[1740798263355,17.6318,147.75,147.61,216.88]
[1740798263558,3.5568,147.71,147.69,0.04298192]
[1740798263755,3.5568,147.71,147.61,216.88]
[1740798264957,0.04595261,147.67,147.65,0.04749071]
[1740798266657,0.04595261,147.67,147.65,5.46749071]
[1740798268257,0.04595261,147.67,147.66,5.4199]
[1740798270165,0.04595261,147.67,147.66,8.7999]
[1740798271164,5.4167,147.75,147.7,5.4181]
[1740798271466,13.92,147.79,147.64,13.92]
[1740798272157,5.4163,147.76,147.64,27.39]
[1740798272358,7.3047,147.75,147.7,0.04675524]
[1740798272561,17.3984,147.74,147.64,27.39]
[1740798272762,5.4176,147.73,147.71,0.0459192]
[1740798272962,5.4176,147.73,147.64,27.39]
[1740798273161,17.3984,147.74,147.64,13.47]
[1740798273858,5.4184,147.7,147.64,31.25]
[1740798274059,0.04421233,147.68,147.66,0.04709673]
[1740798278670,0.04421233,147.68,147.64,31.25]
[1740798279870,0.04421233,147.68,147.65,0.04424355]
[1740798280070,0.04421233,147.68,147.64,31.25]
[1740798280365,5.46351233,147.68,147.64,31.25]
[1740798281264,5.46351233,147.68,147.65,0.05186722]
[1740798281562,5.4195,147.67,147.64,31.25]
[1740798281963,5.4201,147.66,147.64,25.4734]
[1740798282170,5.4201,147.66,147.64,19.6965]
[1740798282562,0.04421233,147.68,147.64,19.74824613]
[1740798282766,0.04421233,147.68,147.64,13.97144613]
[1740798282973,5.4202,147.65,147.64,13.97144613]
[1740798283167,0.04421233,147.68,147.64,13.97144613]
[1740798283469,5.4201,147.66,147.64,13.97144613]
[1740798283675,0.04421233,147.68,147.64,13.97144613]
[1740798284072,5.4201,147.66,147.64,13.97144613]
[1740798285973,5.4196,147.67,147.64,13.97144613]
[1740798286171,0.04421233,147.68,147.64,13.97144613]
[1740798287075,5.4202,147.65,147.64,13.97144613]
[1740798287476,0.04421233,147.68,147.64,13.97144613]
[1740798287668,5.4201,147.66,147.64,13.97144613]
[1740798287865,3.54781233,147.68,147.64,13.97144613]
[1740798288069,5.4202,147.65,147.64,13.97144613]
[1740798295881,3.54781233,147.68,147.58,1.46513636]
[1740798296078,3.5036,147.68,147.58,1.46513636]
[1740798296478,5.4208,147.64,147.58,1.46513636]
[1740798296776,13.9,147.63,147.58,1.46513636]
[1740798296983,0.05037267,147.62,147.6,0.04828004]
[1740798300394,5.4221,147.6,147.56,12.09]
[1740798301487,5.4221,147.6,147.57,0.0521354]
[1740798303086,9.0224,147.61,147.57,0.0521354]
[1740798303482,0.05037267,147.62,147.57,0.0521354]
[1740798303679,13.95037267,147.62,147.57,0.0521354]
[1740798304381,0.05037267,147.62,147.57,0.0521354]
[1740798304679,0.05037267,147.62,147.59,5.4222]
[1740798304882,0.05037267,147.62,147.57,3.7883354]
[1740798305081,13.9,147.64,147.57,7.2656354]
[1740798305380,13.9,147.69,147.57,9.9072354]
[1740798305585,28.26065407,147.66,147.57,226.7551]
[1740798305785,22.48475407,147.66,147.64,5.4205]
[1740798306086,22.48475407,147.66,147.57,226.7551]
[1740798306281,22.48475407,147.66,147.63,5.4209]
[1740798306874,22.53386031,147.66,147.63,5.46992219]
[1740798307080,22.53386031,147.66,147.63,0.04902219]
[1740798307488,27.95376031,147.66,147.63,0.04902219]
[1740798307680,22.53386031,147.66,147.63,0.04902219]
[1740798308481,5.4206,147.64,147.63,0.04902219]
[1740798308884,13.9,147.65,147.57,3.7362]
[1740798309086,5.422,147.61,147.53,1.46577433]
[1740798309386,13.9,147.6,147.53,1.46577433]
[1740798309685,5.4228,147.59,147.53,1.46577433]
[1740798310184,0.05141361,147.57,147.55,0.04723882]
[1740798314394,13.9,147.6,147.55,0.04723882]
[1740798314596,13.9,147.6,147.56,5.4235]
[1740798315495,0.04752051,147.59,147.56,5.4235]
[1740798315695,13.9,147.61,147.56,5.4235]
[1740798315896,0.04279315,147.59,147.56,5.47000096]
[1740798317198,0.04279315,147.59,147.56,0.04650096]
[1740798317400,13.9,147.61,147.56,0.04650096]
[1740798317592,17.6782,147.66,147.56,0.04650096]
[1740798317791,17.6782,147.66,147.6,5.4217]
[1740798318696,0.04865138,147.64,147.62,0.05051326]
[1740798320801,0.04865138,147.64,147.62,5.47181326]
[1740798324006,0.04865138,147.64,147.62,0.05051326]
[1740798326903,0.04865138,147.64,147.53,1.46577433]
[1740798327107,3.7195,147.64,147.53,1.46577433]
[1740798327309,7.4458,147.64,147.53,1.46577433]
[1740798327709,5.4219,147.61,147.53,1.46577433]
[1740798327907,13.88,147.6,147.53,1.46577433]
[1740798328204,0.04474215,147.58,147.56,0.04812537]
[1740798331800,5.46754215,147.58,147.56,0.04812537]
[1740798332006,0.04474215,147.58,147.56,0.04812537]
[1740798335810,5.46774215,147.58,147.56,0.04812537]
[1740798336509,9.02634215,147.58,147.56,0.04812537]
[1740798336707,5.4232,147.57,147.56,0.04812537]
[1740798337507,3.38,147.57,147.53,12.09]
[1740798337809,3.60334215,147.58,147.53,12.09]
[1740798338600,5.4235,147.57,147.54,0.05079317]
[1740798338804,3.60334215,147.58,147.54,0.05079317]
[1740798339206,5.4238,147.56,147.54,0.05079317]
[1740798339417,13.88,147.55,147.54,0.05079317]
[1740798341111,13.88,147.55,147.53,12.09]
[1740798341613,5.4243,147.54,147.53,12.09]
[1740798342010,203.657,147.53,147.35,161.23501771]
[1740798342214,5.4275,147.46,147.36,78.50720659]
[1740798342413,13.88,147.45,147.44,0.04805713]
[1740798342608,13.88,147.45,147.36,83.93780659]
[1740798342811,13.88,147.45,147.43,0.05028489]
[1740798343011,13.88,147.45,147.36,9.2188]
[1740798343212,13.93032764,147.45,147.43,0.04505993]
[1740798343410,13.88,147.45,147.37,5.4304]
[1740798343612,13.92557809,147.45,147.43,0.0459974]
[1740798343815,13.92557809,147.45,147.4,0.05187924]
[1740798348507,19.35317809,147.45,147.4,0.05187924]
[1740798349217,13.92557809,147.45,147.4,0.05187924]
[1740798350420,5.428,147.44,147.4,0.05187924]
[1740798350623,13.92557809,147.45,147.4,0.05187924]
[1740798351020,5.4282,147.44,147.4,0.05187924]
[1740798351619,5.4284,147.43,147.4,0.05187924]
[1740798353525,5.428,147.44,147.4,0.05187924]
[1740798361220,5.4285,147.43,147.4,0.05187924]
[1740798363227,13.92557809,147.45,147.4,0.05187924]
[1740798363228,5.4289,147.42,147.4,0.05187924]
[1740798365629,5.4291,147.41,147.4,0.05187924]
[1740798365826,5.4291,147.41,147.36,11.35]
[1740798366026,183.267,147.35,147.06,380.3604166]
[1740798366327,183.267,147.35,146.68,11.3231]
[1740798366328,6.792,147.17,146.68,11.3231]
[1740798366523,6.792,147.14,146.82,135.68]
[1740798366726,235.85260716,147.16,146.81,111.58077179]
[1740798366727,5.45,146.85,146.81,84.46077179]
[1740798366930,17.86,146.84,146.81,84.46077179]
[1740798367126,17.90897274,146.84,146.82,0.0456683]
[1740798367324,0.04897274,146.84,146.82,0.0456683]
[1740798367524,0.04897274,146.84,146.81,84.38017179]
[1740798367823,0.04897274,146.84,146.74,217.16]
[1740798368022,38.29,146.88,146.79,27.12]
[1740798368220,1.36174848,146.87,146.8,162.8]
[1740798368422,1.36174848,146.87,146.85,27.12]
[1740798368617,1.36174848,146.87,146.84,244.28]
[1740798368825,1.40895634,146.87,146.84,217.16]
[1740798369924,304.37516224,146.86,146.84,217.16]
[1740798370319,304.37516224,146.86,146.85,30.57466265]
[1740798370728,304.37516224,146.86,146.85,17.28133106]
[1740798370927,304.37516224,146.86,146.85,17.23778911]
[1740798371418,292.10435324,146.86,146.85,37.17778649]
[1740798371623,389.20229311,146.86,146.85,53.48567607]
[1740798371823,358.52532108,146.86,146.85,5.93359154]
[1740798372429,334.66668777,146.86,146.82,0.05013649]
[1740798372621,361.65474473,146.86,146.83,27.12]
[1740798372819,361.65474473,146.86,146.82,135.68]
[1740798373020,361.65474473,146.86,146.84,27.12]
[1740798373533,43.11869523,146.85,146.75,128.56389014]
[1740798373830,334.66668777,146.86,146.75,128.56389014]
[1740798373831,334.71202604,146.86,146.75,165.63523361]
[1740798374027,334.66668777,146.86,146.75,165.63523361]
[1740798374628,38.04689528,146.84,146.75,165.63523361]
[1740798375030,0.04321847,146.81,146.78,0.0494968]
[1740798375333,17.88,146.82,146.78,217.76]
[1740798375732,22.4392015,146.81,146.78,170.30778712]
[1740798376135,22.39236336,146.8,146.78,169.59911368]
[1740798376627,22.39236336,146.8,146.78,61.77461818]
[1740798377020,114.18752398,146.81,146.78,61.77461818]
[1740798377628,38.04689528,146.79,146.78,61.77461818]
[1740798378223,38.04689528,146.79,146.76,217.86]
[1740798378836,38.04689528,146.79,146.76,217.84]
[1740798379222,38.09612113,146.79,146.76,217.84]
[1740798379530,38.09612113,146.79,146.76,217.88485081]
[1740798379927,38.04689528,146.78,146.76,0.04485081]
[1740798380132,38.04689528,146.78,146.69,75.19649052]
[1740798380734,38.04689528,146.77,146.69,75.19649052]
[1740798380938,38.04689528,146.77,146.7,217.96]
[1740798381235,0.05093166,146.74,146.72,0.04655321]
[1740798381431,0.05093166,146.74,146.71,217.96]
[1740798381939,0.05093166,146.74,146.72,0.04988617]
[1740798382338,0.05093166,146.74,146.6,217.96]
[1740798382531,17.64,146.75,146.6,217.96]
[1740798383231,38.04689528,146.73,146.6,217.96]
[1740798383432,0.04880853,146.69,146.62,5.4583]
[1740798383739,0.04880853,146.69,146.61,11.1759]
[1740798384335,106.68236505,146.62,146.61,11.1759]
[1740798384534,106.68236505,146.62,146.6,181.5510003]
[1740798385034,38.09861374,146.62,146.6,181.5510003]
[1740798385236,38.09861374,146.62,146.52,218.04]
[1740798385443,38.04689528,146.62,146.52,221.46]
[1740798385740,38.04689528,146.62,146.52,241.82]
[1740798386036,222.25492719,146.69,146.52,241.82]
[1740798386340,222.25492719,146.69,146.64,5.4572]
[1740798386541,222.25492719,146.69,146.65,218.04]
[1740798386731,278.87048756,146.71,146.65,218.04]
[1740798386936,0.04487085,146.68,146.66,0.04519573]
[1740798387137,17.74,146.7,146.54,218.08]
[1740798387341,31.38001285,146.7,146.54,218.08]
[1740798387540,0.05053884,146.68,146.66,0.04492191]
[1740798387737,0.05053884,146.68,146.61,5.4585]
[1740798387738,17.74,146.7,146.61,5.4585]
[1740798387938,0.05178451,146.68,146.66,0.04519573]
[1740798388633,13.69179736,146.68,146.66,0.04519573]
[1740798395950,0.05178451,146.68,146.66,0.04519573]
[1740798396146,13.69179736,146.68,146.62,17.74117025]
[1740798396348,17.74,146.7,146.63,5.4576]
[1740798397043,17.74,146.7,146.62,17.74117025]
[1740798397545,0.04896326,146.67,146.65,0.05104174]
[1740798398052,278.87048756,146.71,146.65,3.45104174]
[1740798398246,278.87048756,146.71,146.65,0.05104174]
[1740798398442,17.6,146.81,146.65,3.45104174]
[1740798398642,17.6,146.81,146.64,235.82]
[1740798399238,0.05061871,146.74,146.71,0.04833146]
[1740798399953,0.05061871,146.74,146.73,27.10599574]
[1740798401448,31.4238,146.86,146.74,5.4537]
[1740798401651,17.44,146.85,146.73,27.10599574]
[1740798402052,17.44,146.85,146.73,129.26691628]
[1740798402753,0.04573252,146.8,146.78,0.04475382]
[1740798402949,17.44,146.85,146.78,0.04475382]
[1740798403150,0.04963784,146.8,146.78,0.04475382]
[1740798403450,17.44,146.85,146.78,0.04475382]
[1740798403956,0.04660507,146.83,146.78,0.04475382]
[1740798404147,0.04660507,146.83,146.78,216.49988846]
[1740798405556,0.04660507,146.83,146.78,188.26661003]
[1740798405760,0.04660507,146.83,146.78,112.97786755]
[1740798406147,0.04660507,146.83,146.78,112.46124462]
[1740798406859,0.04660507,146.83,146.79,476.25831575]
[1740798407064,17.44,146.85,146.79,476.25831575]
[1740798407360,0.04313082,146.83,146.81,0.04805575]
[1740798407658,17.14,146.82,146.81,0.04805575]
[1740798407863,22.516746,146.82,146.81,0.04805575]
[1740798408253,22.496746,146.82,146.81,0.04805575]
[1740798411362,22.496746,146.82,146.78,28.25486522]
[1740798411755,5.376746,146.81,146.78,28.25486522]
[1740798412263,5.376746,146.8,146.78,28.25486522]
[1740798412561,5.376746,146.8,146.78,28.29864421]
[1740798412765,5.376746,146.8,146.78,0.04377899]
[1740798413156,5.376746,146.79,146.78,0.04377899]
[1740798413557,0.04554978,146.8,146.78,0.04377899]
[1740798414264,0.04554978,146.8,146.78,5.49607899]
[1740798414665,0.04554978,146.8,146.78,0.04377899]
[1740798416169,0.04554978,146.8,146.74,217.71881835]
[1740798418374,0.04554978,146.8,146.77,5.4525]
[1740798419575,0.04554978,146.8,146.74,217.71881835]
[1740798420074,0.04554978,146.8,146.78,5.4523]
[1740798420668,0.04554978,146.8,146.74,217.71881835]
[1740798421368,0.04554978,146.8,146.74,223.17241835]
[1740798421772,0.04554978,146.8,146.74,217.71881835]
[1740798422877,0.04554978,146.8,146.74,223.17251835]
[1740798423078,0.04554978,146.8,146.74,217.71881835]
[1740798423583,0.04554978,146.8,146.76,5.4528]
[1740798423784,0.04554978,146.8,146.74,217.71881835]
[1740798425179,0.04554978,146.8,146.77,5.4525]
[1740798425684,0.04554978,146.8,146.74,217.71881835]
[1740798426276,0.04554978,146.8,146.74,217.30035377]
[1740798426781,0.04554978,146.8,146.78,5.4521]
[1740798427277,0.04554978,146.8,146.74,217.30035377]
[1740798427482,0.04554978,146.8,146.78,5.4521]
[1740798427690,0.04554978,146.8,146.74,217.30035377]
[1740798429080,0.04554978,146.8,146.79,5.452]
[1740798430781,0.04554978,146.8,146.74,217.30035377]
[1740798432783,0.04554978,146.8,146.79,5.452]
[1740798434688,0.04554978,146.8,146.78,5.4522]
[1740798436480,0.04554978,146.8,146.77,5.4526]
[1740798439485,0.04554978,146.8,146.78,5.4521]
[1740798440089,0.04554978,146.8,146.77,5.4526]
[1740798441397,0.04554978,146.8,146.74,217.30035377]
[1740798441781,0.04554978,146.8,146.74,222.75395377]
[1740798441985,15.82554978,146.8,146.74,222.75395377]
[1740798442492,15.82554978,146.8,146.76,5.4529]
[1740798443793,15.82554978,146.8,146.76,5.453]
[1740798445892,15.82554978,146.8,146.74,217.30035377]
[1740798446692,15.82554978,146.8,146.74,222.75395377]
[1740798446895,15.82554978,146.8,146.74,217.30035377]
[1740798450501,15.82554978,146.8,146.74,222.75395377]
[1740798450891,15.82554978,146.8,146.74,217.30035377]
[1740798451294,19.51014978,146.8,146.74,217.30035377]
[1740798453408,24.96204978,146.8,146.74,217.30035377]
[1740798453703,19.51014978,146.8,146.74,217.30035377]
[1740798455097,24.96194978,146.8,146.74,217.30035377]
[1740798455498,19.51014978,146.8,146.68,218.12]
[1740798455696,19.4646,146.8,146.68,218.12]
[1740798456199,0.04483811,146.75,146.68,218.12]
[1740798456399,15.3,146.74,146.68,218.12]
[1740798457901,0.04483811,146.75,146.73,5.4542]
[1740798458609,0.04483811,146.75,146.68,218.12]
[1740798460903,0.04483811,146.75,146.7,5.4551]
[1740798461300,0.04483811,146.75,146.68,218.12]
[1740798461504,0.04483811,146.75,146.72,5.4543]
[1740798461802,0.04483811,146.75,146.68,218.12]
[1740798462611,0.04483811,146.75,146.73,5.4539]
[1740798465010,0.04483811,146.75,146.68,218.12]
[1740798465410,0.04483811,146.75,146.69,17.24]
[1740798465913,0.04483811,146.75,146.73,5.454]
[1740798466312,0.04483811,146.75,146.69,17.24]
[1740798466815,0.04483811,146.75,146.74,5.4538]
[1740798467818,0.04483811,146.75,146.69,17.24]
[1740798469319,0.04483811,146.75,146.74,5.4538]
[1740798476521,20.1906,146.83,146.77,5.4524]
[1740798477820,0.04312905,146.81,146.79,0.04682526]
[1740798483319,5.49442905,146.81,146.79,0.04682526]
[1740798485033,0.04312905,146.81,146.79,0.04682526]
[1740798500949,0.04312905,146.81,146.79,5.49862526]
[1740798501244,0.04312905,146.81,146.79,0.04682526]
[1740798501437,0.04312905,146.81,146.8,5.4516]
[1740798501636,0.04312905,146.81,146.79,0.04682526]
[1740798505348,0.04312905,146.81,146.76,19.19]
[1740798505849,5.49452905,146.81,146.76,19.19]
[1740798506156,0.04312905,146.81,146.76,19.19]
[1740798506350,5.4517,146.8,146.76,19.19]
[1740798506550,14.08,146.79,146.76,19.19]
[1740798508356,5.4527,146.77,146.76,1.72604318]
[1740798508554,3.5954,146.78,146.72,218.12]
[1740798508754,3.64330174,146.78,146.72,218.12]
[1740798510356,3.64330174,146.78,146.69,101.32271719]
[1740798510553,3.5954,146.78,146.69,101.32271719]
[1740798510754,0.04492478,146.75,146.69,101.32271719]
[1740798513061,14.08,146.74,146.69,106.77841719]
[1740798515355,14.08,146.74,146.69,101.32271719]
[1740798516662,14.08,146.74,146.69,106.77811719]
[1740798517364,14.08,146.74,146.69,101.32271719]
[1740798517567,14.08,146.74,146.7,5.4553]
[1740798522769,14.08,146.74,146.69,101.32271719]
[1740798522969,14.08,146.74,146.69,106.77821719]
[1740798525566,14.08,146.74,146.69,101.32271719]
[1740798525772,14.08,146.74,146.7,5.4553]
[1740798528877,14.08,146.74,146.72,5.4546]
[1740798529273,0.04492478,146.75,146.7,3.76]
[1740798529679,0.04492478,146.75,146.72,5.4542]
[1740798530073,12.2610412,146.86,146.7,3.76]
[1740798530374,23.02150235,146.88,146.73,14.08]
[1740798530577,7.0672,146.87,146.7,27.76]
[1740798530872,5.4504,146.84,146.7,3.76]
[1740798531279,0.04791212,146.78,146.76,0.04628298]
[1740798531473,5.4506,146.83,146.74,5.4538]
[1740798531670,0.0447636,146.78,146.75,0.04472792]
[1740798531876,14.4,146.82,146.75,5.4532]
[1740798532082,0.05170818,146.78,146.75,5.5020113]
[1740798534282,0.05170818,146.78,146.76,5.4531]
[1740798536993,0.05170818,146.78,146.75,0.0488113]
[1740798537792,0.05170818,146.78,146.76,5.4531]
[1740798538586,0.05170818,146.78,146.77,5.4527]
[1740798543796,0.05170818,146.78,146.76,5.453]
[1740798544695,0.05170818,146.78,146.77,5.4527]
[1740798545102,0.05170818,146.78,146.75,0.0488113]
[1740798545301,0.05170818,146.78,146.76,5.453]
[1740798545505,0.05170818,146.78,146.75,0.0488113]
[1740798545799,0.05170818,146.78,146.75,5.5020113]
[1740798546300,0.05170818,146.78,146.76,5.453]
[1740798546500,0.05170818,146.78,146.75,0.0488113]
[1740798547202,0.05170818,146.78,146.77,5.4527]
[1740798556305,0.05170818,146.78,146.76,5.4529]
[1740798556502,0.05170818,146.78,146.75,0.0488113]
[1740798556803,11.52,146.77,146.75,0.0488113]
[1740798559207,11.52,146.77,146.68,218.16]
[1740798559408,5.4532,146.76,146.7,5.4552]
[1740798559907,16.9728,146.77,146.71,5.4549]
[1740798560513,0.05136947,146.75,146.71,5.4549]
[1740798561710,0.05136947,146.75,146.7,5.4552]
[1740798561909,16.9729,146.77,146.7,5.4552]
[1740798562109,0.04583618,146.74,146.7,5.4552]
[1740798564409,0.04583618,146.74,146.66,101.34381614]
[1740798564611,0.04583618,146.74,146.69,5.4555]
[1740798566612,5.4543,146.73,146.66,101.34381614]
[1740798566808,22.3625,146.72,146.66,101.34381614]
[1740798567007,0.04703214,146.71,146.66,101.34381614]
[1740798567307,0.04703214,146.71,146.66,106.80051614]
[1740798568113,0.04703214,146.71,146.66,101.34381614]
[1740798568413,0.04703214,146.71,146.67,5.4562]
[1740798569608,0.04703214,146.71,146.66,101.34381614]
[1740798570113,0.04703214,146.71,146.68,5.4557]
[1740798571011,0.04703214,146.71,146.69,5.4557]
[1740798571209,0.04703214,146.71,146.66,101.34381614]
[1740798572313,0.04703214,146.71,146.69,5.4554]
[1740798573416,0.04703214,146.71,146.68,5.4558]
[1740798574403,0.04703214,146.71,146.66,101.34381614]
[1740798574607,0.04703214,146.71,146.66,106.80041614]
[1740798575711,5.4554,146.7,146.66,101.34381614]
[1740798575916,0.04703214,146.71,146.61,218.12]
[1740798576104,24.1812,146.72,146.65,5.4572]
[1740798576308,0.04846541,146.67,146.65,5.4572]
[1740798576514,24.1812,146.72,146.65,5.4572]
[1740798576709,0.05166825,146.67,146.65,5.4572]
[1740798576905,0.05092211,146.67,146.66,5.4566]
[1740798578820,0.05092211,146.67,146.65,5.4571]
[1740798579024,0.05092211,146.67,146.61,218.12]
[1740798579518,0.05092211,146.67,146.65,5.4569]
[1740798581821,0.05092211,146.67,146.61,218.12]
[1740798582921,0.05092211,146.67,146.65,5.4568]
[1740798583116,0.05092211,146.67,146.61,218.12]
[1740798583714,0.05092211,146.67,146.65,5.4569]
[1740798583915,0.05092211,146.67,146.61,218.12]
[1740798584109,0.05092211,146.67,146.65,5.4568]
[1740798584717,11.57092211,146.67,146.65,5.4568]
[1740798587021,11.57092211,146.67,146.63,5.4577]
[1740798587518,11.57092211,146.67,146.6,0.85070362]
[1740798587724,11.57092211,146.67,146.62,5.4581]
[1740798588019,11.57092211,146.67,146.6,0.85070362]
[1740798589222,11.57092211,146.67,146.63,5.4579]
[1740798589723,11.57092211,146.67,146.63,5.4576]
[1740798590122,11.57092211,146.67,146.6,0.85070362]
[1740798590423,11.57092211,146.67,146.63,5.4577]
[1740798591025,17.02742211,146.67,146.63,5.4577]
[1740798592223,11.57092211,146.67,146.63,5.4577]
[1740798592526,0.05092211,146.67,146.66,5.4568]
[1740798599924,2.211e-05,146.67,146.66,5.4568]
[1740798604940,2.211e-05,146.67,146.66,8.8568]
[1740798606735,2.211e-05,146.67,146.66,5.4568]
[1740798607135,2.211e-05,146.67,146.66,8.8568]
[1740798607336,2.211e-05,146.67,146.66,5.4568]
[1740798607635,2.211e-05,146.67,146.66,8.8568]
[1740798609834,2.211e-05,146.67,146.66,5.4568]
[1740798614842,2.211e-05,146.67,146.66,8.8568]
[1740798616738,2.211e-05,146.67,146.66,16.9568]
[1740798616946,2.211e-05,146.67,146.66,20.3568]
[1740798621542,2.211e-05,146.67,146.66,16.9568]
[1740798621939,2.211e-05,146.67,146.66,20.3568]
[1740798623345,2.211e-05,146.67,146.66,5.4568]
[1740798626141,2.211e-05,146.67,146.65,0.0488455]
[1740798626342,2.211e-05,146.67,146.63,9.42236133]
[1740798626645,2.211e-05,146.67,146.63,14.87996133]
[1740798626848,2.211e-05,146.67,146.63,9.42236133]
[1740798627744,2.211e-05,146.67,146.62,5.4582]
[1740798627945,2.211e-05,146.67,146.62,5.458]
[1740798629345,2.211e-05,146.67,146.63,5.4579]
[1740798630546,2.211e-05,146.67,146.62,5.4581]
[1740798631046,2.211e-05,146.67,146.63,5.4579]
[1740798631251,2.211e-05,146.67,146.6,219.09070362]
[1740798632152,2.211e-05,146.67,146.61,31.97]
[1740798632454,2.211e-05,146.67,146.66,5.4568]
[1740798637359,2.211e-05,146.67,146.66,16.9368]
[1740798639454,2.211e-05,146.67,146.66,20.3368]
[1740798640860,2.211e-05,146.67,146.66,16.9368]
[1740798641064,2.211e-05,146.67,146.66,20.3368]
[1740798641363,2.211e-05,146.67,146.66,16.9368]
[1740798642168,2.211e-05,146.67,146.66,20.3368]
[1740798645267,2.211e-05,146.67,146.66,40.8068]
[1740798646365,2.211e-05,146.67,146.66,29.3268]
[1740798646561,2.211e-05,146.67,146.66,40.8068]
[1740798647565,11.0919,146.78,146.67,20.47]
[1740798647866,11.0919,146.78,146.77,5.4527]
[1740798653075,7.2572,146.78,146.77,5.4527]
[1740798653372,3.5889,146.83,146.82,5.4509]
[1740798656671,3.5889,146.83,146.81,0.05160892]
[1740798657466,3.5889,146.83,146.82,5.4509]
[1740798657673,3.5889,146.83,146.73,330.8799186]
[1740798658370,3.5916,146.82,146.73,330.8799186]
[1740798658766,3.5916,146.82,146.81,5.4512]
[1740798662172,5.4461,146.95,146.9,5.4475]
[1740798662367,7.1415,146.94,146.85,11.46]
[1740798662870,7.1415,146.94,146.92,5.4471]
[1740798662871,3.5789,146.93,146.92,5.4471]
[1740798663171,75.83151867,146.98,146.9,11.46]
[1740798663372,0.04745107,146.94,146.93,5.4468]
[1740798665172,5.107e-05,146.94,146.93,5.4468]
[1740798668680,7.2723,147.05,146.93,20.47]
[1740798668880,7.2723,147.05,146.94,217.92]
[1740798669081,7.2723,147.05,146.95,11.46]
[1740798669982,0.04610557,147.01,147.0,5.4442]
[1740798670182,7.2723,147.05,146.99,0.04944718]
[1740798670382,0.04861171,147.02,146.99,0.04944718]